[Event "*** Titled Tuesday Blitz"]
[Site "Chess.com"]
[Date "2020.01.07"]
[Round "6"]
[White "Gahan-MG"]
[Black "chessdjw"]
[Result "0-1"]
[WhiteElo "2497"]
[BlackElo "2656"]
[TimeControl "180+2"]
[EndTime "14:19:39 PST"]
[Termination "chessdjw won by resignation"]

1. e4 {[%clk 0:03:01.9]} 1... e5 {[%clk 0:03:00.4]} 2. Nf3 {[%clk 0:03:02.5]}
2... Nc6 {[%clk 0:03:02]} 3. d4 {[%clk 0:03:04.1]} 3... exd4 {[%clk 0:03:02.9]}
4. Nxd4 {[%clk 0:03:06]} 4... Bc5 {[%clk 0:03:00.9]} 5. Nxc6 {[%clk 0:03:07.1]}
5... bxc6 {[%clk 0:03:01.7]} 6. Nc3 {[%clk 0:03:07.4]} 6... Nf6 {[%clk
0:02:56.2]} 7. Bd3 {[%clk 0:03:08.3]} 7... d6 {[%clk 0:02:56.1]} 8. h3 {[%clk
0:03:09]} 8... h6 {[%clk 0:02:47.7]} 9. Na4 {[%clk 0:03:05.2]} 9... Bb6 {[%clk
0:02:47.8]} 10. O-O {[%clk 0:03:02.9]} 10... O-O {[%clk 0:02:49.1]} 11. Qf3
{[%clk 0:02:57]} 11... Re8 {[%clk 0:02:48.9]} 12. Nxb6 {[%clk 0:02:57.5]} 12...
axb6 {[%clk 0:02:47.9]} 13. Bd2 {[%clk 0:02:58.4]} 13... Bb7 {[%clk 0:02:33.1]}
14. Bc3 {[%clk 0:02:54.4]} 14... c5 {[%clk 0:02:34.4]} 15. Bxf6 {[%clk
0:02:54.1]} 15... Qxf6 {[%clk 0:02:36.3]} 16. Qxf6 {[%clk 0:02:55.1]} 16... gxf6
{[%clk 0:02:38.2]} 17. Rfe1 {[%clk 0:02:51]} 17... c4 {[%clk 0:02:20.6]} 18.
Bxc4 {[%clk 0:02:51.3]} 18... Rxe4 {[%clk 0:02:22.2]} 19. Rxe4 {[%clk
0:02:49.4]} 19... Bxe4 {[%clk 0:02:24.1]} 20. c3 {[%clk 0:02:49.9]} 20... d5
{[%clk 0:02:22.8]} 21. Bb3 {[%clk 0:02:49.8]} 21... c6 {[%clk 0:02:22.1]} 22.
Re1 {[%clk 0:02:47.1]} 22... Kf8 {[%clk 0:02:20.8]} 23. c4 {[%clk 0:02:44.8]}
23... dxc4 {[%clk 0:02:18.7]} 24. Bxc4 {[%clk 0:02:43.3]} 24... Bd5 {[%clk
0:02:18.7]} 25. Bxd5 {[%clk 0:02:42.8]} 25... cxd5 {[%clk 0:02:20.6]} 26. a3
{[%clk 0:02:44.3]} 26... Rc8 {[%clk 0:02:18.5]} 27. Re2 {[%clk 0:02:41.9]} 27...
Rc1+ {[%clk 0:02:16.3]} 28. Kh2 {[%clk 0:02:42.6]} 28... Rd1 {[%clk 0:02:17.9]}
29. g4 {[%clk 0:02:41.1]} 29... d4 {[%clk 0:02:18.6]} 30. Kg3 {[%clk 0:02:39.8]}
30... d3 {[%clk 0:02:19.2]} 31. Re3 {[%clk 0:02:25.4]} 31... d2 {[%clk 0:02:20]}
32. Kg2 {[%clk 0:02:10.3]} 32... Re1 {[%clk 0:02:16.9]} 0-1

[Event "*** Titled Tuesday Blitz"]
[Site "Chess.com"]
[Date "2020.01.07"]
[Round "6"]
[White "INLOVEWITHF"]
[Black "Valk4"]
[Result "1/2-1/2"]
[WhiteElo "2421"]
[BlackElo "2287"]
[TimeControl "180+2"]
[EndTime "14:19:48 PST"]
[Termination "Game drawn by repetition"]

1. e4 {[%clk 0:03:01.9]} 1... e5 {[%clk 0:03:00.3]} 2. Nf3 {[%clk 0:03:02.3]}
2... Nc6 {[%clk 0:03:01.6]} 3. Bb5 {[%clk 0:03:02.9]} 3... a6 {[%clk 0:03:02.7]}
4. Ba4 {[%clk 0:03:04.2]} 4... Nf6 {[%clk 0:03:03.4]} 5. O-O {[%clk 0:03:05.3]}
5... Be7 {[%clk 0:03:03.9]} 6. Re1 {[%clk 0:03:05.2]} 6... b5 {[%clk 0:03:02.7]}
7. Bb3 {[%clk 0:03:06.5]} 7... d6 {[%clk 0:03:04.1]} 8. a4 {[%clk 0:03:06.6]}
8... Bd7 {[%clk 0:03:04.2]} 9. c3 {[%clk 0:03:04.8]} 9... Na5 {[%clk 0:02:42.5]}
10. Bc2 {[%clk 0:03:05.3]} 10... O-O {[%clk 0:02:37.4]} 11. d4 {[%clk
0:02:56.5]} 11... exd4 {[%clk 0:02:38]} 12. cxd4 {[%clk 0:02:58.4]} 12... Bg4
{[%clk 0:02:28.9]} 13. h3 {[%clk 0:02:57.7]} 13... Bh5 {[%clk 0:02:29.7]} 14.
Nbd2 {[%clk 0:02:51.5]} 14... Bg6 {[%clk 0:02:20.4]} 15. b3 {[%clk 0:02:46]}
15... c5 {[%clk 0:02:18.5]} 16. d5 {[%clk 0:02:43.2]} 16... Nd7 {[%clk
0:02:03.9]} 17. Nf1 {[%clk 0:02:35]} 17... Bf6 {[%clk 0:02:03.6]} 18. Rb1 {[%clk
0:02:35.6]} 18... bxa4 {[%clk 0:02:00.9]} 19. bxa4 {[%clk 0:02:36.1]} 19... Nc4
{[%clk 0:02:01.9]} 20. Ng3 {[%clk 0:02:35.5]} 20... Re8 {[%clk 0:02:00.6]} 21.
Nh2 {[%clk 0:02:29]} 21... Bh4 {[%clk 0:01:47.8]} 22. Nf3 {[%clk 0:02:11.2]}
22... Bf6 {[%clk 0:01:38.9]} 23. Nh2 {[%clk 0:02:06.8]} 23... Bh4 {[%clk
0:01:39.2]} 24. Nf3 {[%clk 0:02:04.1]} 24... Bf6 {[%clk 0:01:37.8]} 1/2-1/2

[Event "*** Titled Tuesday Blitz"]
[Site "Chess.com"]
[Date "2020.01.07"]
[Round "6"]
[White "jlucasvf"]
[Black "lupta_robin"]
[Result "0-1"]
[WhiteElo "2695"]
[BlackElo "2538"]
[TimeControl "180+2"]
[EndTime "14:20:05 PST"]
[Termination "lupta_robin won by resignation"]

1. e4 {[%clk 0:03:01.9]} 1... g6 {[%clk 0:03:00.5]} 2. d4 {[%clk 0:03:00.7]}
2... Nf6 {[%clk 0:03:01.1]} 3. e5 {[%clk 0:03:00.9]} 3... Nh5 {[%clk 0:02:55.6]}
4. Be2 {[%clk 0:03:01.6]} 4... d6 {[%clk 0:02:56]} 5. Bxh5 {[%clk 0:03:00]} 5...
gxh5 {[%clk 0:02:56.9]} 6. Qxh5 {[%clk 0:02:59.8]} 6... dxe5 {[%clk 0:02:58]} 7.
dxe5 {[%clk 0:02:56.3]} 7... Qd5 {[%clk 0:02:58.5]} 8. Nf3 {[%clk 0:02:53.2]}
8... Qe4+ {[%clk 0:02:59.6]} 9. Be3 {[%clk 0:02:49.4]} 9... Qxc2 {[%clk
0:03:00.9]} 10. O-O {[%clk 0:02:49.4]} 10... Qg6 {[%clk 0:03:02.4]} 11. Qh4
{[%clk 0:02:46.4]} 11... Rg8 {[%clk 0:02:55.6]} 12. g3 {[%clk 0:02:41.5]} 12...
Qg4 {[%clk 0:02:50.6]} 13. Nbd2 {[%clk 0:02:41.4]} 13... Qxh4 {[%clk 0:02:47.7]}
14. Nxh4 {[%clk 0:02:43.3]} 14... Nc6 {[%clk 0:01:48.1]} 15. Rac1 {[%clk
0:02:43.6]} 15... Be6 {[%clk 0:01:32.9]} 16. b3 {[%clk 0:02:43.2]} 16... O-O-O
{[%clk 0:01:30.4]} 17. Ndf3 {[%clk 0:02:42.9]} 17... Bd5 {[%clk 0:01:25]} 18.
Rfd1 {[%clk 0:02:29.4]} 18... e6 {[%clk 0:01:15.8]} 19. Ng5 {[%clk 0:02:29.3]}
19... Be7 {[%clk 0:01:16.8]} 20. Nxf7 {[%clk 0:02:22]} 20... Bxh4 {[%clk
0:01:09.5]} 21. Nxd8 {[%clk 0:02:23.2]} 21... Bxd8 {[%clk 0:01:11]} 22. f4
{[%clk 0:02:24.5]} 22... h5 {[%clk 0:01:02.1]} 23. Bf2 {[%clk 0:02:22.8]} 0-1

[Event "*** Titled Tuesday Blitz"]
[Site "Chess.com"]
[Date "2020.01.07"]
[Round "6"]
[White "wadsy27"]
[Black "NTBT_DHS"]
[Result "0-1"]
[WhiteElo "2464"]
[BlackElo "2624"]
[TimeControl "180+2"]
[EndTime "14:20:34 PST"]
[Termination "NTBT_DHS won by checkmate"]

1. Nf3 {[%clk 0:03:01.9]} 1... Nf6 {[%clk 0:03:00.8]} 2. b3 {[%clk 0:02:59.3]}
2... g6 {[%clk 0:03:02.7]} 3. Bb2 {[%clk 0:02:58.2]} 3... Bg7 {[%clk 0:03:04.6]}
4. g3 {[%clk 0:02:58.2]} 4... O-O {[%clk 0:03:05.7]} 5. Bg2 {[%clk 0:02:59.7]}
5... d5 {[%clk 0:03:06.5]} 6. O-O {[%clk 0:03:01.1]} 6... c5 {[%clk 0:03:07.5]}
7. c4 {[%clk 0:03:02.1]} 7... d4 {[%clk 0:03:08.3]} 8. e3 {[%clk 0:03:03.3]}
8... Nc6 {[%clk 0:03:09.7]} 9. exd4 {[%clk 0:03:04.2]} 9... cxd4 {[%clk
0:03:11.6]} 10. Re1 {[%clk 0:03:04.1]} 10... a5 {[%clk 0:03:12.4]} 11. d3 {[%clk
0:02:54.6]} 11... Nd7 {[%clk 0:03:12.1]} 12. a3 {[%clk 0:02:52.2]} 12... Nc5
{[%clk 0:03:11.8]} 13. Ng5 {[%clk 0:02:30.5]} 13... Qb6 {[%clk 0:03:04.9]} 14.
Ne4 {[%clk 0:02:13]} 14... Nxb3 {[%clk 0:03:02.9]} 15. Nbd2 {[%clk 0:02:09.5]}
15... Nxa1 {[%clk 0:03:02.7]} 16. Qxa1 {[%clk 0:02:09]} 16... a4 {[%clk
0:02:56.6]} 17. Rb1 {[%clk 0:02:07.1]} 17... Qc7 {[%clk 0:02:55.2]} 18. Nf3
{[%clk 0:02:06.7]} 18... Rd8 {[%clk 0:02:54.5]} 19. Bc1 {[%clk 0:01:44.7]} 19...
Bf5 {[%clk 0:02:50.1]} 20. Bf4 {[%clk 0:01:42.3]} 20... e5 {[%clk 0:02:49]} 21.
Bg5 {[%clk 0:01:41.5]} 21... Rdb8 {[%clk 0:02:41.6]} 22. Nh4 {[%clk 0:01:31.7]}
22... Bxe4 {[%clk 0:02:41.4]} 23. Bxe4 {[%clk 0:01:32.1]} 23... Na5 {[%clk
0:02:35.8]} 24. Rb5 {[%clk 0:01:24.8]} 24... Nb3 {[%clk 0:02:36.6]} 25. Qd1
{[%clk 0:01:21.8]} 25... Ra5 {[%clk 0:02:37.1]} 26. Rxa5 {[%clk 0:01:12.9]}
26... Qxa5 {[%clk 0:02:39]} 27. Be7 {[%clk 0:01:08.1]} 27... Qd2 {[%clk
0:02:24.3]} 28. Qf3 {[%clk 0:01:00.5]} 28... Qe1+ {[%clk 0:02:25.2]} 29. Kg2
{[%clk 0:01:00.8]} 29... Nd2 {[%clk 0:02:27.1]} 30. Qg4 {[%clk 0:01:00.2]} 30...
Qf1# {[%clk 0:02:25.2]} 0-1

[Event "*** Titled Tuesday Blitz"]
[Site "Chess.com"]
[Date "2020.01.07"]
[Round "6"]
[White "Sneakiest_Of_Snakes"]
[Black "TheBigBadChessDad"]
[Result "1/2-1/2"]
[WhiteElo "2123"]
[BlackElo "2277"]
[TimeControl "180+2"]
[EndTime "14:20:41 PST"]
[Termination "Game drawn by repetition"]

1. e4 {[%clk 0:03:01.9]} 1... e5 {[%clk 0:02:59.5]} 2. Nf3 {[%clk 0:03:02.4]}
2... Nf6 {[%clk 0:03:00.1]} 3. Nxe5 {[%clk 0:03:02]} 3... d6 {[%clk 0:03:01.3]}
4. Nf3 {[%clk 0:03:03.3]} 4... Nxe4 {[%clk 0:03:02.5]} 5. Nc3 {[%clk 0:03:04.9]}
5... Nxc3 {[%clk 0:03:03.7]} 6. dxc3 {[%clk 0:03:06.8]} 6... Be7 {[%clk
0:03:05.2]} 7. Bc4 {[%clk 0:03:07]} 7... O-O {[%clk 0:03:04.9]} 8. Be3 {[%clk
0:03:08.5]} 8... Nd7 {[%clk 0:03:05]} 9. Qd2 {[%clk 0:03:09.4]} 9... Ne5 {[%clk
0:03:04.4]} 10. Be2 {[%clk 0:03:07.9]} 10... Nxf3+ {[%clk 0:02:59.4]} 11. Bxf3
{[%clk 0:03:08.6]} 11... c6 {[%clk 0:03:00.5]} 12. O-O-O {[%clk 0:03:08.5]}
12... Be6 {[%clk 0:02:59.2]} 13. Kb1 {[%clk 0:03:07.7]} 13... a5 {[%clk
0:02:44.5]} 14. g4 {[%clk 0:03:05.9]} 14... a4 {[%clk 0:02:43]} 15. g5 {[%clk
0:03:06.2]} 15... a3 {[%clk 0:02:41.4]} 16. b3 {[%clk 0:03:07.1]} 16... Qa5
{[%clk 0:02:40]} 17. h4 {[%clk 0:03:05.3]} 17... Rfe8 {[%clk 0:02:23.4]} 18. h5
{[%clk 0:03:05.5]} 18... Bf8 {[%clk 0:02:13.9]} 19. g6 {[%clk 0:02:59.8]} 19...
fxg6 {[%clk 0:02:01.1]} 20. hxg6 {[%clk 0:03:01.7]} 20... hxg6 {[%clk
0:01:56.7]} 21. Rdg1 {[%clk 0:02:58.9]} 21... Bf5 {[%clk 0:01:56.8]} 22. Bd4
{[%clk 0:02:57.9]} 22... Re6 {[%clk 0:01:44.2]} 23. Rh4 {[%clk 0:02:47]} 23...
Rae8 {[%clk 0:01:43.1]} 24. Rgh1 {[%clk 0:02:46.3]} 24... d5 {[%clk 0:01:03.6]}
25. Rh8+ {[%clk 0:02:39.9]} 25... Kf7 {[%clk 0:01:04.8]} 26. R8h7 {[%clk
0:02:41.2]} 26... Be4 {[%clk 0:00:54.2]} 27. Qf4+ {[%clk 0:02:37.5]} 27... Bf5
{[%clk 0:00:40.5]} 28. Qd2 {[%clk 0:02:23.9]} 28... Be4 {[%clk 0:00:39.6]} 29.
Qf4+ {[%clk 0:02:22]} 29... Bf5 {[%clk 0:00:40.6]} 30. Qd2 {[%clk 0:02:20.5]}
1/2-1/2

[Event "*** Titled Tuesday Blitz"]
[Site "Chess.com"]
[Date "2020.01.07"]
[Round "6"]
[White "Hrant_ChessMood"]
[Black "1stSecond"]
[Result "1-0"]
[WhiteElo "2938"]
[BlackElo "2841"]
[TimeControl "180+2"]
[EndTime "14:20:48 PST"]
[Termination "Hrant_ChessMood won by resignation"]

1. e4 {[%clk 0:02:55.1]} 1... e5 {[%clk 0:03:00.6]} 2. Nf3 {[%clk 0:02:51.6]}
2... Nc6 {[%clk 0:03:01]} 3. Bc4 {[%clk 0:02:53.3]} 3... Bc5 {[%clk 0:03:01.2]}
4. c3 {[%clk 0:02:54.2]} 4... Nf6 {[%clk 0:03:02.3]} 5. d4 {[%clk 0:02:55.5]}
5... exd4 {[%clk 0:03:03.5]} 6. e5 {[%clk 0:02:57.4]} 6... d5 {[%clk 0:03:04.4]}
7. Bb5 {[%clk 0:02:58.9]} 7... Ne4 {[%clk 0:03:05.9]} 8. cxd4 {[%clk 0:03:00.5]}
8... Bb6 {[%clk 0:03:07.4]} 9. Nc3 {[%clk 0:03:02.1]} 9... Bg4 {[%clk
0:03:07.8]} 10. Be3 {[%clk 0:03:03.3]} 10... O-O {[%clk 0:03:08.2]} 11. h3
{[%clk 0:03:04.2]} 11... Bh5 {[%clk 0:03:08.7]} 12. Qc2 {[%clk 0:03:04.1]} 12...
Bxf3 {[%clk 0:03:08.6]} 13. gxf3 {[%clk 0:03:04.6]} 13... Ng5 {[%clk 0:03:10.1]}
14. O-O-O {[%clk 0:03:01.8]} 14... Ne6 {[%clk 0:03:10.6]} 15. Bxc6 {[%clk
0:02:58.6]} 15... bxc6 {[%clk 0:03:10.6]} 16. f4 {[%clk 0:02:55.3]} 16... Qh4
{[%clk 0:03:04.9]} 17. Rhg1 {[%clk 0:02:35]} 17... Rad8 {[%clk 0:02:27.6]} 18.
Ne2 {[%clk 0:02:19.4]} 18... Qh5 {[%clk 0:02:28.6]} 19. f5 {[%clk 0:02:15.6]}
19... Nxd4 {[%clk 0:02:11.9]} 20. Nxd4 {[%clk 0:02:04.8]} 20... c5 {[%clk
0:01:59.6]} 21. Nc6 {[%clk 0:02:00.5]} 21... d4 {[%clk 0:02:00.9]} 22. Nxd8
{[%clk 0:01:55.7]} 22... dxe3 {[%clk 0:02:01.1]} 23. fxe3 {[%clk 0:01:56.9]}
23... c4 {[%clk 0:02:00.4]} 24. Kb1 {[%clk 0:01:45.9]} 24... Bxe3 {[%clk
0:01:53.5]} 25. Rg4 {[%clk 0:01:46.7]} 25... Qxh3 {[%clk 0:01:51.7]} 26. Rxc4
{[%clk 0:01:47.4]} 26... c5 {[%clk 0:01:48.4]} 27. e6 {[%clk 0:01:46.5]} 27...
Bd4 {[%clk 0:01:46.5]} 28. Nxf7 {[%clk 0:01:44.6]} 28... Qf3 {[%clk 0:01:40.9]}
29. Ng5 {[%clk 0:01:39.7]} 29... Qxf5 {[%clk 0:01:35.5]} 30. Qxf5 {[%clk
0:01:40]} 30... Rxf5 {[%clk 0:01:37.4]} 31. Rdxd4 {[%clk 0:01:41.3]} 31... cxd4
{[%clk 0:01:34]} 32. e7 {[%clk 0:01:41.5]} 1-0

[Event "*** Titled Tuesday Blitz"]
[Site "Chess.com"]
[Date "2020.01.07"]
[Round "6"]
[White "AndrewDGreen"]
[Black "pedroholly22"]
[Result "0-1"]
[WhiteElo "2201"]
[BlackElo "2332"]
[TimeControl "180+2"]
[EndTime "14:20:52 PST"]
[Termination "pedroholly22 won by resignation"]

1. d4 {[%clk 0:03:01.9]} 1... Nc6 {[%clk 0:03:00.4]} 2. d5 {[%clk 0:03:02]} 2...
Ne5 {[%clk 0:03:01.4]} 3. e4 {[%clk 0:03:03.2]} 3... Ng6 {[%clk 0:03:02.1]} 4.
Nf3 {[%clk 0:02:58.7]} 4... d6 {[%clk 0:03:03.6]} 5. Nc3 {[%clk 0:02:55]} 5...
a6 {[%clk 0:03:05]} 6. Be3 {[%clk 0:02:54.1]} 6... e5 {[%clk 0:03:02.8]} 7. dxe6
{[%clk 0:02:45.5]} 7... Bxe6 {[%clk 0:03:02.2]} 8. h4 {[%clk 0:02:43.3]} 8...
Qd7 {[%clk 0:02:59]} 9. h5 {[%clk 0:02:34.1]} 9... N6e7 {[%clk 0:02:59]} 10. Nd4
{[%clk 0:02:31]} 10... O-O-O {[%clk 0:02:59.3]} 11. Nxe6 {[%clk 0:02:19.6]}
11... fxe6 {[%clk 0:02:59.1]} 12. Qd2 {[%clk 0:01:42.5]} 12... d5 {[%clk
0:03:00.2]} 13. O-O-O {[%clk 0:01:27]} 13... Nf6 {[%clk 0:03:00.3]} 14. e5
{[%clk 0:01:17.8]} 14... Ng4 {[%clk 0:02:59.9]} 15. Bf4 {[%clk 0:01:17]} 15...
Nc6 {[%clk 0:02:46]} 16. Qe1 {[%clk 0:01:04.5]} 16... Bc5 {[%clk 0:02:45.7]} 17.
Bg3 {[%clk 0:00:33.5]} 17... Rhf8 {[%clk 0:02:42.5]} 18. Ne4 {[%clk 0:00:32.9]}
18... Bb6 {[%clk 0:02:42.4]} 19. Rh4 {[%clk 0:00:27.6]} 19... Ngxe5 {[%clk
0:02:42.4]} 20. Ng5 {[%clk 0:00:24.4]} 20... h6 {[%clk 0:02:39.1]} 21. Nh7
{[%clk 0:00:12.4]} 21... Rf5 {[%clk 0:02:36.2]} 22. f3 {[%clk 0:00:06.9]} 22...
Rh8 {[%clk 0:02:31.5]} 23. Bxe5 {[%clk 0:00:03.1]} 23... Rxe5 {[%clk 0:02:31.6]}
24. Qd2 {[%clk 0:00:03.6]} 24... Be3 {[%clk 0:02:30.5]} 0-1

[Event "*** Titled Tuesday Blitz"]
[Site "Chess.com"]
[Date "2020.01.07"]
[Round "6"]
[White "Khalakhanov"]
[Black "Mr_Sinigami"]
[Result "0-1"]
[WhiteElo "2365"]
[BlackElo "2585"]
[TimeControl "180+2"]
[EndTime "14:21:06 PST"]
[Termination "Mr_Sinigami won by resignation"]

1. e4 {[%clk 0:03:01.9]} 1... d5 {[%clk 0:02:58.7]} 2. exd5 {[%clk 0:03:02.7]}
2... Nf6 {[%clk 0:03:00.2]} 3. Nc3 {[%clk 0:03:03.2]} 3... Nxd5 {[%clk
0:03:01.5]} 4. d4 {[%clk 0:03:04.6]} 4... g6 {[%clk 0:03:01.2]} 5. Nf3 {[%clk
0:03:04]} 5... Bg7 {[%clk 0:03:00.5]} 6. Bc4 {[%clk 0:03:02.2]} 6... Nb6 {[%clk
0:03:00.6]} 7. Be2 {[%clk 0:02:57.7]} 7... O-O {[%clk 0:02:58.9]} 8. Be3 {[%clk
0:02:59.2]} 8... Nc6 {[%clk 0:02:59.7]} 9. Qd2 {[%clk 0:02:59.7]} 9... Bg4
{[%clk 0:02:58.5]} 10. O-O-O {[%clk 0:02:53.8]} 10... Nb4 {[%clk 0:02:40.1]} 11.
a3 {[%clk 0:02:38.6]} 11... N4d5 {[%clk 0:02:37.5]} 12. Nxd5 {[%clk 0:01:42.4]}
12... Qxd5 {[%clk 0:02:36.1]} 13. Kb1 {[%clk 0:01:40.8]} 13... Nc4 {[%clk
0:02:33.2]} 14. Bxc4 {[%clk 0:01:37.4]} 14... Qxc4 {[%clk 0:02:35.1]} 15. Bh6
{[%clk 0:01:33.9]} 15... Bxf3 {[%clk 0:02:34.4]} 16. gxf3 {[%clk 0:01:33]} 16...
Rad8 {[%clk 0:02:31.7]} 17. Bxg7 {[%clk 0:01:32.5]} 17... Kxg7 {[%clk 0:02:31]}
18. Qe3 {[%clk 0:01:32.9]} 18... e6 {[%clk 0:02:23.3]} 19. h4 {[%clk 0:01:33.7]}
19... h5 {[%clk 0:02:22.5]} 20. Rhg1 {[%clk 0:01:32.9]} 20... Rd5 {[%clk
0:02:20.8]} 21. Rg5 {[%clk 0:01:18.6]} 21... Rfd8 {[%clk 0:02:20.2]} 22. c3
{[%clk 0:01:16.8]} 22... Rxg5 {[%clk 0:02:11.6]} 23. Qxg5 {[%clk 0:01:15.9]}
23... Rd5 {[%clk 0:02:11.2]} 24. Qe3 {[%clk 0:01:16.8]} 24... a5 {[%clk
0:02:05.1]} 25. Rg1 {[%clk 0:01:02.9]} 25... b5 {[%clk 0:01:59.3]} 26. Rg5
{[%clk 0:01:03.9]} 26... Rxg5 {[%clk 0:01:45.9]} 27. Qxg5 {[%clk 0:01:05.8]}
27... Qd3+ {[%clk 0:01:46.1]} 28. Ka2 {[%clk 0:01:05.5]} 0-1

[Event "*** Titled Tuesday Blitz"]
[Site "Chess.com"]
[Date "2020.01.07"]
[Round "6"]
[White "Everyfishknows"]
[Black "HouseOfDurin"]
[Result "1-0"]
[WhiteElo "2338"]
[BlackElo "2123"]
[TimeControl "180+2"]
[EndTime "14:21:34 PST"]
[Termination "Everyfishknows won on time"]

1. Nf3 {[%clk 0:03:01.9]} 1... c5 {[%clk 0:02:54.2]} 2. c4 {[%clk 0:03:02]} 2...
Nc6 {[%clk 0:02:55.5]} 3. d4 {[%clk 0:03:01.4]} 3... cxd4 {[%clk 0:02:57.3]} 4.
Nxd4 {[%clk 0:03:03]} 4... g6 {[%clk 0:02:58.5]} 5. e4 {[%clk 0:03:02.4]} 5...
Bg7 {[%clk 0:02:59.6]} 6. Be3 {[%clk 0:03:02.6]} 6... d6 {[%clk 0:02:58.6]} 7.
Nc3 {[%clk 0:03:01.4]} 7... a6 {[%clk 0:02:54.4]} 8. Be2 {[%clk 0:03:01.3]} 8...
e5 {[%clk 0:02:50]} 9. Nc2 {[%clk 0:02:59]} 9... Nge7 {[%clk 0:02:45.5]} 10. O-O
{[%clk 0:02:59.7]} 10... O-O {[%clk 0:02:44.9]} 11. f3 {[%clk 0:03:00.6]} 11...
Be6 {[%clk 0:02:36.7]} 12. Qd2 {[%clk 0:03:01]} 12... Qc7 {[%clk 0:02:24.9]} 13.
Rac1 {[%clk 0:02:56.9]} 13... f5 {[%clk 0:01:27.1]} 14. Nd5 {[%clk 0:02:55.6]}
14... Qd8 {[%clk 0:00:45.6]} 15. Bb6 {[%clk 0:02:50.3]} 15... Qd7 {[%clk
0:00:45.9]} 16. Nc7 {[%clk 0:02:44]} 16... Rac8 {[%clk 0:00:43.3]} 17. Nxe6
{[%clk 0:02:44.2]} 17... Qxe6 {[%clk 0:00:45.2]} 18. Ne3 {[%clk 0:02:42]} 18...
fxe4 {[%clk 0:00:40.3]} 19. fxe4 {[%clk 0:02:42.5]} 19... Nd4 {[%clk 0:00:36.7]}
20. Bg4 {[%clk 0:02:22.1]} 20... Nef5 {[%clk 0:00:21.1]} 21. exf5 {[%clk
0:02:18.6]} 21... gxf5 {[%clk 0:00:18.9]} 22. Bxd4 {[%clk 0:02:12.7]} 22... fxg4
{[%clk 0:00:19.5]} 23. Bb6 {[%clk 0:02:13.4]} 23... Bh6 {[%clk 0:00:12.7]} 24.
Qd5 {[%clk 0:02:14]} 24... Qxd5 {[%clk 0:00:10.9]} 25. cxd5 {[%clk 0:02:12.9]}
25... Rxc1 {[%clk 0:00:07.5]} 26. Rxc1 {[%clk 0:02:11.9]} 26... Rf7 {[%clk
0:00:02.8]} 27. Rc8+ {[%clk 0:02:05.8]} 27... Kg7 {[%clk 0:00:03.8]} 28. Nxg4
{[%clk 0:02:05.4]} 28... Bd2 {[%clk 0:00:02.6]} 29. Be3 {[%clk 0:02:05.6]} 1-0

[Event "*** Titled Tuesday Blitz"]
[Site "Chess.com"]
[Date "2020.01.07"]
[Round "6"]
[White "Rainbow2014"]
[Black "aquaticpineapples"]
[Result "0-1"]
[WhiteElo "2257"]
[BlackElo "2344"]
[TimeControl "180+2"]
[EndTime "14:21:46 PST"]
[Termination "aquaticpineapples won by checkmate"]

1. e4 {[%clk 0:03:00.3]} 1... d5 {[%clk 0:03:00.2]} 2. exd5 {[%clk 0:03:00.5]}
2... Qxd5 {[%clk 0:03:02.1]} 3. Nc3 {[%clk 0:03:00.1]} 3... Qa5 {[%clk
0:03:03.2]} 4. d4 {[%clk 0:02:59.7]} 4... Nf6 {[%clk 0:03:04.4]} 5. Nf3 {[%clk
0:02:59.9]} 5... Nc6 {[%clk 0:03:05.3]} 6. Bc4 {[%clk 0:02:59.5]} 6... Bg4
{[%clk 0:03:05.5]} 7. Be3 {[%clk 0:02:45.7]} 7... O-O-O {[%clk 0:03:05.5]} 8.
O-O {[%clk 0:02:06.6]} 8... e5 {[%clk 0:03:01.3]} 9. d5 {[%clk 0:01:48.4]} 9...
e4 {[%clk 0:02:54.1]} 10. Qe1 {[%clk 0:01:49]} 10... exf3 {[%clk 0:02:31.9]} 11.
dxc6 {[%clk 0:01:48.7]} 11... fxg2 {[%clk 0:02:30.7]} 12. Kxg2 {[%clk
0:01:48.5]} 12... Qh5 {[%clk 0:02:08]} 13. cxb7+ {[%clk 0:01:40.2]} 13... Kxb7
{[%clk 0:02:06.7]} 14. Be2 {[%clk 0:01:31.8]} 14... Bd6 {[%clk 0:01:53.1]} 15.
f4 {[%clk 0:01:26.8]} 15... Rhe8 {[%clk 0:01:42.1]} 16. Bf3+ {[%clk 0:01:17.7]}
16... c6 {[%clk 0:01:24.3]} 17. Qe2 {[%clk 0:01:05.8]} 17... Bxf3+ {[%clk
0:01:17.9]} 18. Qxf3 {[%clk 0:01:06.2]} 18... Ng4 {[%clk 0:01:10.2]} 19. Bg1
{[%clk 0:01:03.7]} 19... Bc5 {[%clk 0:00:57.3]} 20. h3 {[%clk 0:00:59.7]} 20...
Bxg1 {[%clk 0:00:55.3]} 21. Rxg1 {[%clk 0:00:59]} 21... Rd2+ {[%clk 0:00:52.5]}
22. Kg3 {[%clk 0:00:43.4]} 22... Re3 {[%clk 0:00:45.9]} 23. hxg4 {[%clk
0:00:43.8]} 23... Qh2# {[%clk 0:00:46.4]} 0-1

[Event "*** Titled Tuesday Blitz"]
[Site "Chess.com"]
[Date "2020.01.07"]
[Round "6"]
[White "Jbd735"]
[Black "Ray_Yang"]
[Result "1-0"]
[WhiteElo "2469"]
[BlackElo "2273"]
[TimeControl "180+2"]
[EndTime "14:21:48 PST"]
[Termination "Jbd735 won by checkmate"]

1. e4 {[%clk 0:03:01.9]} 1... e6 {[%clk 0:03:00.3]} 2. d4 {[%clk 0:03:02.9]}
2... d5 {[%clk 0:03:01.6]} 3. Nc3 {[%clk 0:03:04.3]} 3... Bb4 {[%clk 0:03:01.2]}
4. e5 {[%clk 0:03:04.8]} 4... c5 {[%clk 0:03:02.1]} 5. a3 {[%clk 0:03:06.2]}
5... Bxc3+ {[%clk 0:03:03.3]} 6. bxc3 {[%clk 0:03:08]} 6... Ne7 {[%clk
0:03:04.7]} 7. Nf3 {[%clk 0:03:09]} 7... Qc7 {[%clk 0:02:59.2]} 8. a4 {[%clk
0:03:06.4]} 8... b6 {[%clk 0:02:59.5]} 9. Bb5+ {[%clk 0:02:58.2]} 9... Bd7
{[%clk 0:03:00.4]} 10. Bd3 {[%clk 0:02:49.6]} 10... cxd4 {[%clk 0:03:01.2]} 11.
cxd4 {[%clk 0:02:47.6]} 11... Nbc6 {[%clk 0:02:58.8]} 12. c3 {[%clk 0:02:28.4]}
12... Nxe5 {[%clk 0:02:46.9]} 13. Nxe5 {[%clk 0:02:26.6]} 13... Qxc3+ {[%clk
0:02:47.5]} 14. Bd2 {[%clk 0:02:26.7]} 14... Qxd4 {[%clk 0:02:45.1]} 15. Nxd7
{[%clk 0:02:18.8]} 15... Qxd3 {[%clk 0:02:46.2]} 16. Ne5 {[%clk 0:02:11.9]}
16... Qe4+ {[%clk 0:02:35]} 17. Qe2 {[%clk 0:02:12.3]} 17... Qd4 {[%clk
0:02:36.2]} 18. O-O {[%clk 0:02:07.2]} 18... O-O {[%clk 0:02:34.6]} 19. Rfe1
{[%clk 0:02:02.9]} 19... Nf5 {[%clk 0:02:33]} 20. a5 {[%clk 0:02:00.2]} 20... b5
{[%clk 0:02:29.6]} 21. a6 {[%clk 0:01:42.5]} 21... Nd6 {[%clk 0:02:30.1]} 22.
Rab1 {[%clk 0:01:25.4]} 22... Nc4 {[%clk 0:02:29]} 23. Nxc4 {[%clk 0:01:17]}
23... bxc4 {[%clk 0:02:29.4]} 24. Qe3 {[%clk 0:01:10.2]} 24... Qf6 {[%clk
0:02:19.9]} 25. Bc3 {[%clk 0:01:09.9]} 25... Qg6 {[%clk 0:02:18.4]} 26. Rb7
{[%clk 0:01:03.3]} 26... Qc2 {[%clk 0:02:17.9]} 27. Qd4 {[%clk 0:00:57.8]} 27...
f6 {[%clk 0:02:16.7]} 28. Rxe6 {[%clk 0:00:54.9]} 28... Rfe8 {[%clk 0:02:08.8]}
29. Rxg7+ {[%clk 0:00:28.1]} 29... Kh8 {[%clk 0:01:59.7]} 30. Rge7 {[%clk
0:00:21.3]} 30... Rxe7 {[%clk 0:01:54]} 31. Qxf6+ {[%clk 0:00:17.7]} 31... Kg8
{[%clk 0:01:52.3]} 32. Qh8+ {[%clk 0:00:17.1]} 32... Kf7 {[%clk 0:01:51.6]} 33.
Rf6# {[%clk 0:00:17.9]} 1-0